Cogmind - Beta 13 @@@ ROGUE MODE // 2024.04.29 @ 13:14:56 Player: CrimsonOccultist Result: Destroyed by G-47 Trooper with Particle Gun Performance ------------- Evolutions (0) 0 Regions Visited (2) 400 Robots Destroyed (21) 105 Value Destroyed (406) 406 Prototype IDs (7) 140 Alien Tech Used (0) 0 Bonus (0) 0 TOTAL SCORE: 1051 Bonus ------- None Cogmind --------- Core Integrity 0/250 Matter 298/300 Energy 81/100 System Corruption 2% Temperature Warning (341) Movement Walking (120) Location -10/Mines Parts ------- > --- POWER (1) -------- (None) > --- PROPULSION (2) --- Aluminum Leg Aluminum Leg > --- UTILITY (2) ------ Medium Storage Unit Structural Scanner > --- WEAPON (2) ------- Small Laser (fused) Particle Gun > --- INVENTORY (10) --- Ion Engine Ion Engine Aluminum Leg Aluminum Leg Improved Heat Sink Large Storage Unit Signal Interpreter Terrain Scanner Small Laser Small Laser Peak State ------------ > --- POWER ------------ Light Nuclear Core > --- PROPULSION ------- Aluminum Leg Aluminum Leg > --- UTILITY ---------- Medium Storage Unit Structural Scanner > --- WEAPON ----------- Small Laser Particle Gun > --- INVENTORY -------- Ion Engine Ion Engine Aluminum Leg Aluminum Leg Improved Heat Sink Large Storage Unit Signal Interpreter Terrain Scanner Small Laser Small Laser [Rating: 11] Favorites ----------- Power Light Nuclear Core Engine Light Ion Engine Power Core Light Nuclear Core Propulsion Aluminum Leg Leg Aluminum Leg Utility Medium Storage Unit Device Structural Scanner Storage Medium Storage Unit Weapon Small Laser Energy Gun Small Laser Ballistic Gun Light Assault Rifle Build | -11 -10 -10 ------- Run | Yrd Mat Min Slots Evolved . | . . . Power . | . . . Propulsion . | . . . Utility . | . . . Weapon . | . . . Parts Attached 22 | 7 12 3 Power 4 | 1 1 2 Engine 2 | 1 . 1 Core 2 | . 1 1 Reactor . | . . . Propulsion 8 | 2 6 . Treads . | . . . Leg 8 | 2 6 . Wheel . | . . . Hover . | . . . Flight . | . . . Utility 3 | 1 2 . Device 1 | . 1 . Storage 2 | 1 1 . Processor . | . . . Hackware . | . . . Protection . | . . . Artifact . | . . . Weapon 7 | 3 3 1 Energy Gun 6 | 2 3 1 Energy Cannon . | . . . Ballistic Gun 1 | 1 . . Ballistic Cannon . | . . . Launcher . | . . . Special Weapon . | . . . Impact Weapon . | . . . Slashing Weapon . | . . . Piercing Weapon . | . . . Special Melee Weapon . | . . . Unidentified Prototypes . | . . . Parts Lost 2 | . . 2 Power 2 | . . 2 Propulsion . | . . . Utility . | . . . Weapon . | . . . Highest Loss Streak 1 | . . 1 To Critical Strikes . | . . . Average Slot Usage (%) 97 | . 97 99 Engine 2 | . . 9 Core 11 | . 13 4 Leg 27 | . 27 28 Device 12 | . 11 14 Storage 14 | . 14 14 Energy Gun 26 | . 25 27 Ballistic Gun 1 | . 2 . Naked Turns . | . . . Heaviest Build 20 | 12 18 20 Greatest Support 20 | 20 20 20 Greatest Overweight (x) 1 | . 1 . Average Overweight (x) . | . . . Largest Inventory Capacity 10 | 8 10 10 Average Capacity 9 | 7 9 10 Most Carried 10 | 3 10 10 Average Carried 9 | 1 9 10 Final Capacity 10 | 8 10 10 Final Carried 10 | 3 10 10 Class Distribution -------------------- 60% | Mutant 39% | Scavenger-Mutant Dominant Class ---------------- Mutant | -10/Materials Mutant | -10/Mines Resources | -11 -10 -10 ----------- Run | Yrd Mat Min Matter Collected 466 | 216 203 47 Remotely . | . . . Salvage Created 592 | . 479 113 Parts 42 | . 32 10 Haulers Intercepted 2 | . 2 . Recyclers Shooed . | . . . Parts Field Recycled . | . . . Retrieved Matter . | . . . Parts Self-Destructed . | . . . Prevented . | . . . Kills | -11 -10 -10 ------- Run | Yrd Mat Min Combat Hostiles Destroyed 16 | . 11 5 Guns 16 | . 11 5 Classes Destroyed 5 | . 5 . Hauler 2 | . 2 . Operator 1 | . 1 . Watcher 2 | . 2 . Swarmer 9 | . 6 3 Grunt 7 | . 5 2 Best Kill Streak 3 | . 3 3 Combat Bots Only 3 | . 3 3 Max Kills in Single Turn 1 | . 1 1 Gunslinging . | . . . Exploded . | . . . Melee . | . . . Uniques/NPCs Destroyed . | . . . Combat | -11 -10 -10 -------- Run | Yrd Mat Min Hostile Shots Fired 115 | . 77 38 Missed 33 | . 24 9 Damage Taken 895 | . 550 345 Core 259 | . 158 101 Absorbed by Shields . | . . . Regen/Repaired (Parts) 113 | . 113 . Core Remaining (%) 100 | 100 . . Volleys Fired 73 | . 58 15 Largest 2 | . 2 2 Hottest 105 | . 80 105 Shots Fired 148 | . 118 30 Gun 148 | . 118 30 Cannon . | . . . Launcher . | . . . Special . | . . . Kinetic 23 | . 23 . Thermal 125 | . 95 30 Explosive . | . . . Electromagnetic . | . . . Robot Hit Streak 9 | . 6 9 Robot Miss Streak 5 | . 5 3 Penetration Max . | . . . Secondary Targets 4 | . 2 2 Max Gunslinging Chain 1 | . 1 1 Shots Hit Robots 81 | . 61 20 Core Hits 36 | . 27 9 Critical Kills . | . . . Critical Parts Destroyed . | . . . Critical Strikes 1 | . . 1 Burn 1 | . . 1 Melee Attacks . | . . . Impact . | . . . Slashing . | . . . Piercing . | . . . Sneak Attacks . | . . . Combat Hostiles . | . . . Follow-up Attacks . | . . . Damage Inflicted 903 | . 662 241 Guns 896 | . 655 241 Cannons . | . . . Explosions . | . . . Melee . | . . . Ramming 7 | . 7 . Kinetic 99 | . 99 . Thermal 797 | . 556 241 Explosive . | . . . Electromagnetic . | . . . Impact . | . . . Slashing . | . . . Piercing . | . . . Highest Corruption 2 | . 2 2 Average Corruption 1 | . 1 2 Corruption Purged . | . . . Corruption Blocked . | . . . Effects 16 | . 10 6 Message Errors 4 | . 3 1 Matter Fused 5 | . 2 3 Energy Discharges 2 | . 1 1 Parts Fused 1 | . 1 . Data Loss (minor) 1 | . 1 . Data Loss (major) 1 | . . 1 Misfires 2 | . 2 . Overload Shots . | . . . Overflow Damage . | . . . Projectiles . | . . . Explosions . | . . . Melee . | . . . Knockbacks . | . . . Impact . | . . . Kinetic . | . . . Secondary . | . . . Self-Inflicted Damage . | . . . Shots . | . . . Rammed . | . . . Targets Rammed 2 | . 2 . Kicked 2 | . 2 . Crushed . | . . . Highest Temperature 326 | . 218 326 Average Temperature 62 | . 58 80 Received Heat Transfer 366 | . 192 174 Effects 1 | . . 1 Energy Bleed 1 | . . 1 Siege Activations . | . . . Robots Corrupted . | . . . Combat Hostiles . | . . . Parts Fried . | . . . Impact Corruptions . | . . . Robots Melted . | . . . Combat Hostiles . | . . . Parts Melted 1 | . . 1 Heat Transferred 1910 | . 1275 635 Parts Sabotaged . | . . . Parts Stolen . | . . . Parts Stripped . | . . . Power Chain Reactions . | . . . Alert | -11 -10 -10 ------- Run | Yrd Mat Min Peak Influence 202 | . 202 145 Initial 35 | . . 35 Average 77 | . 72 115 Maximum Alert Level 1 | . 1 . Low Security (%) 96 | 100 95 100 Level 1 3 | . 4 . Level 2 . | . . . Level 3 . | . . . Level 4 . | . . . Level 5 . | . . . High Security . | . . . Max Security . | . . . Squads Dispatched 3 | . 3 . Investigation 1 | . 1 . Extermination . | . . . Reinforcement 2 | . 2 . Assault . | . . . Garrison . | . . . Intercept . | . . . Searches Triggered . | . . . Construction Impeded . | . . . Haulers Reinforced . | . . . Active Scanning Responses . | . . . Cargo Convoy Interrupts . | . . . Stealth | -11 -10 -10 --------- Run | Yrd Mat Min Distress Signals 1 | . 1 . Communications Jammed . | . . . Distress Signals . | . . . Times Spotted 36 | . 30 6 Peak Tracking Total 6 | . 6 2 Tactical Retreats 1 | . 1 . Traps | -11 -10 -10 ------- Run | Yrd Mat Min Traps Triggered 3 | . 3 . Indirectly . | . . . Trap Hack Attempts . | . . . Triggered . | . . . Disarmed . | . . . Reprogrammed . | . . . Reused . | . . . Traps Extracted . | . . . Installed . | . . . Triggered . | . . . Machines | -11 -10 -10 ---------- Run | Yrd Mat Min Machines Disabled . | . . . Max in Single Turn . | . . . Machines Repaired . | . . . Machines Dismantled . | . . . Machines Sabotaged . | . . . Overloaded Fab Kills . | . . . Hacking | -11 -10 -10 --------- Run | Yrd Mat Min Machines Accessed 8 | . 8 . Terminals 6 | . 6 . Fabricators . | . . . Repair Stations 1 | . 1 . Recycling Units 1 | . 1 . Scanalyzers . | . . . Garrison Access . | . . . Total Hacks 30 | . 30 . Successful 21 | . 21 . Failed 9 | . 9 . Catastrophic 1 | . 1 . Database Lockouts . | . . . Manual 19 | . 19 . Terminals 22 | . 22 . Fabricators . | . . . Repair Stations 6 | . 6 . Recycling Units 2 | . 2 . Scanalyzers . | . . . Garrison Access . | . . . Terminal Hacks 10 | . 10 . Prototype ID Bank 9 | . 9 . Branch Access Points 1 | . 1 . Fabricator Hacks . | . . . Repair Station Hacks 6 | . 6 . Scan Component 3 | . 3 . Repair 3 | . 3 . Recycling Unit Hacks 2 | . 2 . Retrieve Components 2 | . 2 . Scanalyzer . | . . . Garrison Access Hacks . | . . . Unauthorized Hacks 3 | . 3 . Terminals 3 | . 3 . Botnet 3 | . 3 . Fabricators . | . . . Repair Stations . | . . . Recycling Units . | . . . Scanalyzers . | . . . Garrison Access . | . . . Data Cores Recovered . | . . . Used . | . . . Hacking Detections 7 | . 7 . Full Trace Events 1 | . 1 . Feedback Events . | . . . Feedback Blocked . | . . . Robot Schematics Acquired . | . . . Robots Built . | . . . Authchips . | . . . Time . | . . . Total Robot Build Rating . | . . . Part Schematics Acquired . | . . . Parts Built . | . . . Authchips . | . . . Time . | . . . Total Part Build Rating . | . . . Parts Repaired 3 | . 3 . Time 78 | . 78 . Parts Recycled . | . . . Recycled Matter . | . . . Retrieved Matter . | . . . Retrieved Components 2 | . 2 . Parts Scanalyzed . | . . . Part Schematics Acquired . | . . . Parts Damaged . | . . . Bothacking | -11 -10 -10 ------------ Run | Yrd Mat Min Used RIF Installer . | . . . Robots Hacked . | . . . Non-combat . | . . . Combat . | . . . Robot Hacks Applied . | . . . Relay Couplers Released . | . . . Fabnet Peak Effective % . | . . . Robots Rewired . | . . . Allies Hacked . | . . . Hacks Repelled . | . . . Allies | -11 -10 -10 -------- Run | Yrd Mat Min Total Allies . | . . . Largest Group . | . . . Highest-Rated Group . | . . . Highest-Rated Ally . | . . . Total Orders . | . . . Ally Attacks . | . . . Total Damage . | . . . Kills . | . . . Allies Corrupted . | . . . Allies Melted . | . . . Intel | -11 -10 -10 ------- Run | Yrd Mat Min Robot Analysis Total . | . . . Derelict Logs Recovered 2 | . . 2 Drone Launches . | . . . Drone Recoveries . | . . . Exploration | -11 -10 -10 ------------- Run | Yrd Mat Min Turns Passed 1918 | 88 1457 373 Spaces Moved 1166 | 58 849 259 Core 2 | 2 . . Treads . | . . . Legs 1164 | 56 849 259 Wheels . | . . . Hover . | . . . Flight . | . . . Fastest Speed 50 | 50 120 120 Average Speed 119 | 117 120 120 Slowest Speed 190 | 120 190 120 Overloaded Moves . | . . . Propulsion Burnouts . | . . . Robots Hopped . | . . . Cave-ins Triggered . | . . . Exploration Rate (%) 54 | 4 98 62 Regions Visited 2 Branch Regions 1 Pre-discovered Areas . | . . . Known Exits Taken 1 | . 1 . Unknown Exits Taken 1 | 1 . . Scrap Searched . | . . . Spaces Dug . | . . . Terrain Destroyed . | . . . Melee . | . . . Projectile . | . . . AOE . | . . . Terrain Rammed . | . . . Walls Destroyed . | . . . Machines Disabled . | . . . Actions | -11 -10 -10 --------- Run | Yrd Mat Min Total 1547 | 75 1181 291 Wait 252 | 8 234 10 Move 1164 | 57 848 259 Hop . | . . . Pick Up 15 | 2 12 1 Fast Attach 14 | 7 4 3 Attach . | . . . Detach 3 | 1 2 . Swap 8 | . 8 . Drop 16 | . 13 3 Fire 73 | . 58 15 Melee . | . . . Ram . | . . . Kick 2 | . 2 . Crush . | . . . Escape Stasis . | . . . Rewire . | . . . Trap . | . . . Miscellaneous . | . . . Route ------- -11/Scrapyard -10/Materials (discovered 4 exits: [*Mat x3] / *Min) -10/Mines (discovered 1 exit: [*Mat]) History --------- Turn | Location | Event 5 | -11/Scrapyard | Discovered new exit (range 16) 89 | -11/Scrapyard | Entered Materials 397 | -10/Materials | Discovered new exit (range 10) 544 | -10/Materials | Identified exit to Mines 558 | -10/Materials | Discovered new exit (range 8) 618 | -10/Materials | Build established: Scavenger-Mutant 639 | -10/Materials | Discovered new exit (range 13) 728 | -10/Materials | Repaired Aluminum Leg 755 | -10/Materials | Repaired Ion Engine 782 | -10/Materials | Repaired Aluminum Leg 1053 | -10/Materials | Build established: Mutant 1304 | -10/Materials | Core integrity fell below 50% 1546 | -10/Materials | Entered Mines 1645 | -10/Mines | Learned Materials emergency access door positions 1789 | -10/Mines | Discovered new exit (range 3) 1806 | -10/Mines | Core integrity fell below 20% 1919 | -10/Mines | Destroyed by G-47 Trooper with Particle Gun Last Messages --------------- 01814_ Acquired Lgt. Nuclear Core. 01817_ Dropped Lgt. Treads. 01817_ Acquired Imp. Heat Sink. 01818_ Acquired 10 matter. 01823_ System corrupted: Matter fused (-5). 01824_ Acquired 5 matter. 01828_ Dropped Sml. Laser. 01830_ Acquired Particle Gun. 01831_ Acquired 10 matter. 01840_ System corrupted: Energy discharge (-32). 01849_ K-01 Serf collects debris. 01880_ System corrupted: Matter fused (-7). 01883_ K-01 Serf collects debris. 01910_ G-47 Trooper suffers critical hit (Burn). 01913_ K-01 Serf collects debris. 01915_ G-47 Trooper heat damages Imp. Heat Sink. 01915_ Lgt. Nuclear Core destroyed. 01917_ K-01 Serf collects debris. 01917_ Critical hit (Burn: +37). 01918_ Overheating: Energy bleed (-13). Map ----- +----------------------------------------------------+ | ????????#### ######## ##?????????????? | | ?????????### ######### ##?????????????? | | ?????????### ###### ##?????????????? | | ????????### ###### #######?????????????? | | ???????### ## ##??## #######?????????????? | | ???????## ### ###### ######??????????????? | | ???????## #### ###### ###### ?????????????? | | ???????## ##### ## ## ?????????????? | | ???????## ##### ##?????????????? | | ???????### ###### """ ##?????????????? | | ???############?## """ ###?????????????? | | ??###########???### """ ############???????? | | ?#### ####?????#### #############???????? | | ?### ####?????#### ##???????? | | ?## ############## ##???????? | | ?## ############### ######### ##???????? | | ### ## ########## ######### ##???????? | | ### ######### ###?????? ##???????? | | ## ###????? ##???????? | | ## """ ###### ## ##????? ##??????? | | # """ ###### ### ###?????? ##??????? | | """ ##??## #########?????? ??????? | | ###??## ########???????? ??????? | | # ###?### ###?????????? ?? ??????? | | # ###??### ####?????? ???? ?????? | | # ####??## @####???? ##????? #???? | | ####???## ####? ###????? ##???? | | #######???### ## ###?????###???? | | # ########????### g ###?????###???? | | ## #####????????## g ###??????????? | | ### ####?????????### ##??????????? | | ########?????????### ##??????????? | | #######??????????## ###??????????? | | ###????????????? ###??????????? | | ####???????? ### ??????????? | | ####??????? ## #### ?????????? | | ####??????#### ## ###??? ?????????? | | ###???????### #### ##??????????????? | | ##????????### #### k ??????????????? | | ##????????### ??## ### ?????????????? | | ###?????????###?? ## ##### ?????????????? | | ###??????????????########### ?????????????? | | ###????????????????#####???## ???????????????? | | #####????????????????????????????????????????????? | | ####?????????????????????????????????????????????? | | ?????????????????????????????????????????????????? | | ?????????????????????????????????????????????????? | | ?????????????????????????????????????????????????? | | ?????????????????????????????????????????????????? | | ?????????????????????????????????????????????????? | +----------------------------------------------------+ Best States ------------- Heat Dissipation 25 Energy Generation 14 Energy Capacity 250 Matter Stores 300 Matter Capacity 300 Sight Range 16 Terrain Scan Density 10 Evasion (%) 55 Item Schematics ----------------- None Robot Schematics ------------------ None Fabricated ------------ Nothing Alien Tech Used ----------------- None Achievements -------------- None Challenges ------------ None Game ------ Seed DirtyAlphaReplicator Manual? 0 Play Time 00:15:11 Cumulative 23.4 hours Start 2024.04.29 @ 13:01:46 End 2024.04.29 @ 13:14:56 Sessions 1 Manual Loads 0 Difficulty Rogue Special Mode None Game No. 21 Rogue 21 Adventurer 0 Explorer 0 Win Type - Total 0 Types 0/0/0/0/0/0/0/0/0 Lore% 17 Gallery% 29 Achievement% 26 Wizard Run 0 Options --------- Layout 0 ASCII 0 Keyboard 1 Movement Numpad Keybinds 0 Fullscreen 1 Font 18/SmallcapsGlow Map View 76x50 Zoom Use 0% Tactical HUD 1 Map Filters NONE Filters NONE Steam 1 RUN: df67d8c7-7481-474e-9370-37c6d896f8f0